[Event "44th Chess Olympiad Open 2022"]
[Site "Chennai"]
[Date "2022.08.02"]
[Round "5.48"]
[White "Liyanage, Ranindu Dilshan"]
[Black "Bouzidi, Ahmed"]
[Result "1-0"]
[WhiteElo "2286"]
[BlackElo "2148"]
[Annotator "NA RC"]
[PlyCount "85"]
[EventDate "2022.??.??"]
[TimeControl "60"]

1. e4 {[%emt 0:00:12]} e5 {[%emt 0:00:10]} 2. Nf3 {[%emt 0:00:11]} Nc6 {
[%emt 0:00:08]} 3. Bc4 {[%emt 0:00:11]} Nf6 {[%emt 0:00:12]} 4. d3 {[%emt 0:00:
00]} Bc5 {[%emt 0:00:28]} 5. c3 {[%emt 0:00:36]} d6 {[%emt 0:02:40]} 6. O-O {
[%emt 0:03:15]} a6 {[%emt 0:03:43]} 7. a4 {[%emt 0:00:09]} Ba7 {[%emt 0:02:18]}
8. Re1 {[%emt 0:03:11]} h6 {[%emt 0:06:50]} 9. Nbd2 {[%emt 0:13:19]} O-O {
[%emt 0:04:53]} 10. h3 {[%emt 0:01:54]} Qe8 {[%emt 0:11:30]} 11. Nh4 {[%emt 0:
00:00]} b5 {[%emt 0:08:08]} 12. Ba2 {[%emt 0:01:00]} Be6 {[%emt 0:00:58]} 13.
Qf3 {[%emt 0:03:34]} Bxa2 {[%emt 0:13:24]} 14. Rxa2 {[%emt 0:00:07]} Qe6 {
[%emt 0:00:13]} 15. Ra1 {[%emt 0:00:31]} Ne7 {[%emt 0:02:25]} 16. Nf1 {[%emt 0:
00:00]} Kh7 {[%emt 0:05:33]} 17. Be3 {[%emt 0:11:14]} Bxe3 {[%emt 0:01:22]} 18.
Nxe3 {[%emt 0:00:07]} g6 {[%emt 0:00:32]} 19. d4 {[%emt 0:04:05]} c6 {[%emt 0:
00:00]} 20. Rad1 {[%emt 0:14:53]} Kg7 {[%emt 0:11:42]} 21. a5 {[%emt 0:04:09]}
Rad8 {[%emt 0:02:09]} 22. Nf1 {[%emt 0:06:37]} c5 {[%emt 0:04:46]} 23. Qe3 {
[%emt 0:01:42]} Nd7 {[%emt 0:02:31]} 24. Ng3 {[%emt 0:01:22]} Kh7 {[%emt 0:00:
00]} 25. Nf3 {[%emt 0:01:27]} Qf6 {[%emt 0:02:46]} 26. Rd2 {[%emt 0:00:09]} Qf4
{[%emt 0:02:00]} 27. Qe2 {[%emt 0:02:00]} exd4 {[%emt 0:01:19]} 28. cxd4 {
[%emt 0:00:02]} Nc6 {[%emt 0:00:33]} 29. dxc5 {[%emt 0:00:53]} dxc5 {[%emt 0:
00:00]} 30. Red1 {[%emt 0:04:32]} Nf6 {[%emt 0:01:00]} 31. e5 {[%emt 0:00:33]}
Rxd2 {[%emt 0:01:19]} 32. Qxd2 {[%emt 0:00:05]} Qxd2 {[%emt 0:00:24]} 33. Rxd2
{[%emt 0:00:01]} Nh5 {[%emt 0:01:17]} 34. Ne4 {[%emt 0:00:18]} Nxa5 {[%emt 0:
00:00]} 35. Rd7 {[%emt 0:00:33]} Nf4 {[%emt 0:00:27]} 36. Nxc5 {[%emt 0:00:00]}
Nc4 {[%emt 0:00:41]} 37. b3 {[%emt 0:00:08]} Na5 {[%emt 0:00:32]} 38. e6 {
[%emt 0:01:01]} Nc6 {[%emt 0:00:35]} 39. Rc7 {[%emt 0:00:33]} Ne2+ {[%emt 0:00:
00]} 40. Kf1 {[%emt 0:00:23]} Ned4 {[%emt 0:00:16]} 41. Nxd4 {[%emt 0:31:58]}
Nxd4 {[%emt 0:30:09]} 42. e7 {[%emt 0:00:37]} Rh8 {[%emt 0:00:00]} 43. Ne4 {
[%emt 0:00:00]} 1-0

[Event "44th Chess Olympiad Open 2022"]
[Site "Chennai"]
[Date "2022.08.02"]
[Round "5.48"]
[White "Amdouni, Zoubaier"]
[Black "Alahakoon, Isuru"]
[Result "0-1"]
[WhiteElo "2224"]
[BlackElo "2000"]
[Annotator "NA RC"]
[PlyCount "76"]
[EventDate "2022.??.??"]
[TimeControl "60"]

1. e4 {[%emt 0:00:04]} c5 {[%emt 0:02:31]} 2. Nc3 {[%emt 0:00:18]} Nc6 {
[%emt 0:00:14]} 3. Bb5 {[%emt 0:00:05]} Nd4 {[%emt 0:00:59]} 4. Nf3 {[%emt 0:
00:00]} a6 {[%emt 0:02:26]} 5. Bd3 {[%emt 0:00:07]} d6 {[%emt 0:02:45]} 6. Nxd4
{[%emt 0:00:33]} cxd4 {[%emt 0:00:06]} 7. Ne2 {[%emt 0:00:04]} e5 {[%emt 0:00:
00]} 8. c3 {[%emt 0:01:16]} dxc3 {[%emt 0:02:26]} 9. dxc3 {[%emt 0:01:24]} Be7
{[%emt 0:01:48]} 10. O-O {[%emt 0:08:20]} Nf6 {[%emt 0:01:40]} 11. Ng3 {
[%emt 0:03:21]} O-O {[%emt 0:08:16]} 12. Qe2 {[%emt 0:03:37]} Be6 {[%emt 0:00:
00]} 13. Nf5 {[%emt 0:02:18]} Bxf5 {[%emt 0:09:19]} 14. exf5 {[%emt 0:00:04]}
Re8 {[%emt 0:00:14]} 15. c4 {[%emt 0:05:49]} Qc8 {[%emt 0:03:01]} 16. Kh1 {
[%emt 0:09:54]} e4 {[%emt 0:10:44]} 17. Bxe4 {[%emt 0:03:07]} d5 {[%emt 0:00:
00]} 18. Bf3 {[%emt 0:15:06]} Qxf5 {[%emt 0:02:43]} 19. cxd5 {[%emt 0:01:32]}
Rac8 {[%emt 0:05:51]} 20. Qd1 {[%emt 0:03:52]} Bd6 {[%emt 0:01:32]} 21. Be3 {
[%emt 0:04:26]} Rc2 {[%emt 0:04:57]} 22. Bd4 {[%emt 0:09:07]} Rec8 {[%emt 0:00:
00]} 23. Re1 {[%emt 0:14:05]} Qg5 {[%emt 0:05:33]} 24. g3 {[%emt 0:09:24]} h5 {
[%emt 0:04:08]} 25. Kg1 {[%emt 0:04:26]} h4 {[%emt 0:01:31]} 26. Bc3 {[%emt 0:
00:00]} hxg3 {[%emt 0:04:29]} 27. Qxc2 {[%emt 0:00:20]} gxf2+ {[%emt 0:00:09]}
28. Kxf2 {[%emt 0:00:04]} Bc5+ {[%emt 0:02:00]} 29. Ke2 {[%emt 0:00:39]} Qe3+ {
[%emt 0:00:28]} 30. Kd1 {[%emt 0:00:04]} Qxf3+ {[%emt 0:00:09]} 31. Qe2 {
[%emt 0:00:47]} Qxd5+ {[%emt 0:00:18]} 32. Kc2 {[%emt 0:00:21]} b5 {[%emt 0:00:
00]} 33. Rad1 {[%emt 0:01:10]} Qxa2 {[%emt 0:00:13]} 34. Bxf6 {[%emt 0:00:08]}
Bd4+ {[%emt 0:01:10]} 35. Kd3 {[%emt 0:00:28]} Qc4+ {[%emt 0:00:31]} 36. Ke4 {
[%emt 0:00:04]} Re8+ {[%emt 0:00:39]} 37. Kf3 {[%emt 0:00:31]} Qc6+ {[%emt 0:
00:00]} 38. Kg3 {[%emt 0:01:32]} Rxe2 {[%emt 0:00:24]} 0-1

[Event "44th Chess Olympiad Open 2022"]
[Site "Chennai"]
[Date "2022.08.02"]
[Round "5.48"]
[White "Meddeb, Anis"]
[Black "De Silva, L M S T.."]
[Result "0-1"]
[WhiteElo "2121"]
[BlackElo "2212"]
[Annotator "NA RC"]
[PlyCount "96"]
[EventDate "2022.??.??"]
[TimeControl "60"]

1. e4 {[%emt 0:00:03]} e5 {[%emt 0:00:18]} 2. Nf3 {[%emt 0:00:06]} Nc6 {
[%emt 0:00:10]} 3. Bb5 {[%emt 0:00:12]} a6 {[%emt 0:00:22]} 4. Ba4 {[%emt 0:00:
00]} Nf6 {[%emt 0:00:35]} 5. O-O {[%emt 0:00:37]} Be7 {[%emt 0:00:49]} 6. d3 {
[%emt 0:00:38]} b5 {[%emt 0:01:07]} 7. Bb3 {[%emt 0:00:07]} O-O {[%emt 0:00:55]
} 8. Re1 {[%emt 0:00:44]} d6 {[%emt 0:02:39]} 9. c3 {[%emt 0:00:23]} Na5 {
[%emt 0:02:50]} 10. Bc2 {[%emt 0:00:09]} c5 {[%emt 0:01:30]} 11. Nbd2 {[%emt 0:
00:00]} Re8 {[%emt 0:05:43]} 12. Nf1 {[%emt 0:00:31]} Bf8 {[%emt 0:04:13]} 13.
Bg5 {[%emt 0:08:52]} h6 {[%emt 0:02:38]} 14. Bd2 {[%emt 0:03:45]} g6 {[%emt 0:
00:00]} 15. a4 {[%emt 0:01:54]} Be6 {[%emt 0:05:10]} 16. Ne3 {[%emt 0:06:44]}
Qc7 {[%emt 0:15:51]} 17. d4 {[%emt 0:04:14]} c4 {[%emt 0:12:05]} 18. d5 {
[%emt 0:02:18]} Bd7 {[%emt 0:00:19]} 19. axb5 {[%emt 0:00:58]} axb5 {[%emt 0:
00:00]} 20. h3 {[%emt 0:01:05]} Bg7 {[%emt 0:04:27]} 21. Kh2 {[%emt 0:08:00]}
Nb7 {[%emt 0:03:30]} 22. Nf1 {[%emt 0:02:49]} Nh5 {[%emt 0:02:19]} 23. Rxa8 {
[%emt 0:01:49]} Rxa8 {[%emt 0:00:00]} 24. Qc1 {[%emt 0:00:14]} g5 {[%emt 0:00:
00]} 25. g4 {[%emt 0:03:52]} Nf4 {[%emt 0:00:51]} 26. Ng3 {[%emt 0:00:15]} Re8
{[%emt 0:01:55]} 27. Bxf4 {[%emt 0:04:04]} exf4 {[%emt 0:01:09]} 28. Nf5 {
[%emt 0:02:19]} Bxf5 {[%emt 0:00:43]} 29. exf5 {[%emt 0:00:13]} Qd8 {[%emt 0:
00:00]} 30. Kg2 {[%emt 0:14:13]} Nc5 {[%emt 0:01:39]} 31. Qd2 {[%emt 0:03:35]}
Rxe1 {[%emt 0:02:09]} 32. Qxe1 {[%emt 0:00:16]} Bf6 {[%emt 0:00:24]} 33. Qa1 {
[%emt 0:14:32]} Qe8 {[%emt 0:01:10]} 34. Kf1 {[%emt 0:03:44]} Kg7 {[%emt 0:00:
00]} 35. Qd1 {[%emt 0:02:46]} Qa8 {[%emt 0:01:23]} 36. Nd4 {[%emt 0:00:51]}
Qxd5 {[%emt 0:02:26]} 37. Nxb5 {[%emt 0:00:14]} Nd3 {[%emt 0:01:18]} 38. Nd4 {
[%emt 0:06:07]} Bxd4 {[%emt 0:02:25]} 39. cxd4 {[%emt 0:00:28]} Nxb2 {[%emt 0:
00:00]} 40. Qd2 {[%emt 0:00:37]} Nd3 {[%emt 0:03:58]} 41. Bxd3 {[%emt 0:30:34]}
Qxd4 {[%emt 0:30:32]} 42. Qb4 {[%emt 0:03:13]} Qxd3+ {[%emt 0:00:11]} 43. Kg2 {
[%emt 0:00:10]} c3 {[%emt 0:01:05]} 44. Qa5 {[%emt 0:02:30]} Qe4+ {[%emt 0:00:
00]} 45. Kh2 {[%emt 0:00:18]} Qd4 {[%emt 0:00:42]} 46. Kg2 {[%emt 0:00:48]} c2
{[%emt 0:01:05]} 47. Qa3 {[%emt 0:00:39]} f3+ {[%emt 0:00:27]} 48. Kxf3 {
[%emt 0:00:27]} Qf4+ {[%emt 0:00:09]} 0-1

[Event "44th Chess Olympiad Open 2022"]
[Site "Chennai"]
[Date "2022.08.02"]
[Round "5.48"]
[White "Kiriella, K G T S D.."]
[Black "Boudriga, Mohamed Ali"]
[Result "0-1"]
[WhiteElo "1781"]
[BlackElo "2308"]
[Annotator "RC"]
[PlyCount "54"]
[EventDate "2022.??.??"]
[TimeControl "60"]

1. e4 {[%emt 0:00:03]} c5 {[%emt 0:01:29]} 2. Nf3 {[%emt 0:00:05]} d6 {[%emt 0:
00:00]} 3. d4 {[%emt 0:00:09]} cxd4 {[%emt 0:00:04]} 4. Nxd4 {[%emt 0:00:04]}
Nf6 {[%emt 0:00:05]} 5. Nc3 {[%emt 0:00:03]} a6 {[%emt 0:00:14]} 6. Be3 {
[%emt 0:00:39]} e5 {[%emt 0:04:55]} 7. Nf3 {[%emt 0:00:11]} Be7 {[%emt 0:00:32]
} 8. Nd2 {[%emt 0:00:22]} Nbd7 {[%emt 0:18:35]} 9. Nc4 {[%emt 0:02:51]} Qc7 {
[%emt 0:00:01]} 10. a4 {[%emt 0:03:54]} b6 {[%emt 0:00:05]} 11. Bg5 {[%emt 0:
00:00]} Bb7 {[%emt 0:11:16]} 12. f3 {[%emt 0:04:34]} O-O {[%emt 0:03:13]} 13.
Bxf6 {[%emt 0:03:17]} Nxf6 {[%emt 0:00:03]} 14. Ne3 {[%emt 0:00:16]} d5 {
[%emt 0:04:58]} 15. Nexd5 {[%emt 0:08:42]} Nxd5 {[%emt 0:00:15]} 16. Nxd5 {
[%emt 0:01:32]} Bxd5 {[%emt 0:00:16]} 17. exd5 {[%emt 0:01:53]} e4 {[%emt 0:00:
00]} 18. fxe4 {[%emt 0:02:29]} Qe5 {[%emt 0:00:07]} 19. Bd3 {[%emt 0:08:37]}
Bc5 {[%emt 0:01:05]} 20. Qf3 {[%emt 0:20:15]} Qxb2 {[%emt 0:00:18]} 21. Rd1 {
[%emt 0:00:07]} f5 {[%emt 0:05:07]} 22. exf5 {[%emt 0:02:37]} Rae8+ {[%emt 0:
00:00]} 23. Kf1 {[%emt 0:00:05]} Re3 {[%emt 0:03:34]} 24. Qf4 {[%emt 0:00:12]}
Rxd3 {[%emt 0:03:19]} 25. cxd3 {[%emt 0:07:58]} Qc2 {[%emt 0:03:42]} 26. Qd2 {
[%emt 0:00:38]} Rxf5+ {[%emt 0:00:12]} 27. Ke1 {[%emt 0:00:05]} Bb4 {[%emt 0:
00:00]} 0-1

[Event "44th Chess Olympiad Open 2022"]
[Site "Chennai"]
[Date "2022.08.02"]
[Round "5.49"]
[White "Adebayo, Adegboyega"]
[Black "Monnaatsheko, Keletshabile"]
[Result "1-0"]
[WhiteElo "2313"]
[BlackElo "2014"]
[Annotator "RC"]
[PlyCount "119"]
[EventDate "2022.??.??"]
[TimeControl "60"]

1. d4 {[%emt 0:00:13]} d5 {[%emt 0:00:12]} 2. c4 {[%emt 0:00:13]} c6 {[%emt 0:
00:00]} 3. Nc3 {[%emt 0:00:12]} e6 {[%emt 0:00:28]} 4. Nf3 {[%emt 0:00:28]} f5
{[%emt 0:00:11]} 5. Bf4 {[%emt 0:00:20]} Nf6 {[%emt 0:00:14]} 6. e3 {[%emt 0:
00:00]} Nbd7 {[%emt 0:00:36]} 7. Bd3 {[%emt 0:00:15]} Ne4 {[%emt 0:00:48]} 8.
Ne5 {[%emt 0:02:22]} Qh4 {[%emt 0:04:37]} 9. Bxe4 {[%emt 0:04:21]} fxe4 {
[%emt 0:00:14]} 10. O-O {[%emt 0:00:35]} Bb4 {[%emt 0:17:54]} 11. Nxd7 {
[%emt 0:01:46]} Bxd7 {[%emt 0:00:12]} 12. Qb3 {[%emt 0:00:09]} a5 {[%emt 0:00:
00]} 13. cxd5 {[%emt 0:01:20]} exd5 {[%emt 0:13:20]} 14. a3 {[%emt 0:00:30]}
Bxc3 {[%emt 0:02:31]} 15. Qxb7 {[%emt 0:00:35]} Qd8 {[%emt 0:00:56]} 16. bxc3 {
[%emt 0:00:34]} O-O {[%emt 0:00:22]} 17. Rab1 {[%emt 0:02:01]} Qe8 {[%emt 0:00:
00]} 18. Qc7 {[%emt 0:01:25]} Rc8 {[%emt 0:00:54]} 19. Qe5 {[%emt 0:00:53]} Qg6
{[%emt 0:06:28]} 20. Rb7 {[%emt 0:01:50]} Bg4 {[%emt 0:05:25]} 21. a4 {[%emt 0:
00:00]} Rf5 {[%emt 0:11:11]} 22. Qe7 {[%emt 0:01:37]} Rf7 {[%emt 0:01:07]} 23.
Qxf7+ {[%emt 0:00:08]} Qxf7 {[%emt 0:00:02]} 24. Rxf7 {[%emt 0:00:07]} Kxf7 {
[%emt 0:00:08]} 25. Rb1 {[%emt 0:00:17]} Bd7 {[%emt 0:01:45]} 26. Rb7 {[%emt 0:
00:00]} Ke6 {[%emt 0:00:19]} 27. f3 {[%emt 0:00:37]} exf3 {[%emt 0:00:27]} 28.
gxf3 {[%emt 0:00:10]} g5 {[%emt 0:01:20]} 29. Bc7 {[%emt 0:01:22]} h5 {[%emt 0:
00:00]} 30. Ra7 {[%emt 0:01:42]} g4 {[%emt 0:00:47]} 31. fxg4 {[%emt 0:00:34]}
hxg4 {[%emt 0:00:02]} 32. Bxa5 {[%emt 0:00:28]} c5 {[%emt 0:04:40]} 33. Bb6 {
[%emt 0:05:20]} cxd4 {[%emt 0:00:15]} 34. Bxd4 {[%emt 0:01:16]} Rc4 {[%emt 0:
00:00]} 35. a5 {[%emt 0:00:41]} Ra4 {[%emt 0:00:06]} 36. Ra6+ {[%emt 0:00:14]}
Ke7 {[%emt 0:04:21]} 37. Bc5+ {[%emt 0:00:39]} Kf7 {[%emt 0:01:54]} 38. Kf2 {
[%emt 0:04:09]} Bb5 {[%emt 0:00:50]} 39. Ra7+ {[%emt 0:00:10]} Ke6 {[%emt 0:00:
00]} 40. Kg3 {[%emt 0:00:20]} Bf1 {[%emt 0:05:07]} 41. Kh4 {[%emt 0:31:36]} Kf6
{[%emt 0:33:07]} 42. Bd4+ {[%emt 0:01:51]} Kg6 {[%emt 0:00:00]} 43. Kxg4 {
[%emt 0:00:00]} Ra2 {[%emt 0:00:00]} 44. h4 {[%emt 0:00:00]} Rg2+ {[%emt 0:00:
00]} 45. Kf4 {[%emt 0:00:00]} Ra2 {[%emt 0:00:00]} 46. Ke5 {[%emt 0:00:00]} Bc4
{[%emt 0:00:00]} 47. Kd6 {[%emt 0:00:00]} Kh5 {[%emt 0:00:00]} 48. Kc5 {
[%emt 0:00:00]} Ra4 {[%emt 0:00:00]} 49. Kb6 {[%emt 0:00:00]} Kxh4 {[%emt 0:00:
00]} 50. a6 {[%emt 0:00:00]} Bd3 {[%emt 0:00:00]} 51. Ra8 {[%emt 0:00:00]} Bxa6
{[%emt 0:00:00]} 52. Rxa6 {[%emt 0:00:00]} Rc4 {[%emt 0:00:00]} 53. Ra5 {
[%emt 0:00:00]} Kg4 {[%emt 0:00:00]} 54. Rxd5 {[%emt 0:00:00]} Rc8 {[%emt 0:00:
00]} 55. e4 {[%emt 0:00:00]} Kf4 {[%emt 0:00:00]} 56. e5 {[%emt 0:00:00]} Ke4 {
[%emt 0:00:00]} 57. Rd6 {[%emt 0:00:00]} Kd3 {[%emt 0:00:00]} 58. e6 {[%emt 0:
00:00]} Re8 {[%emt 0:00:00]} 59. e7 {[%emt 0:00:00]} Kc4 {[%emt 0:00:00]} 60.
Bf6 {[%emt 0:00:00]} 1-0

[Event "44th Chess Olympiad Open 2022"]
[Site "Chennai"]
[Date "2022.08.02"]
[Round "5.49"]
[White "Okeke Issac"]
[Black "Oatlhotse, Providence"]
[Result "0-1"]
[WhiteElo "2204"]
[BlackElo "2204"]
[Annotator "NA RC"]
[PlyCount "58"]
[EventDate "2022.??.??"]
[TimeControl "60"]

1. e4 {[%emt 0:00:05]} g6 {[%emt 0:00:29]} 2. Nc3 {[%emt 0:00:35]} Bg7 {
[%emt 0:00:03]} 3. h4 {[%emt 0:00:18]} h5 {[%emt 0:00:36]} 4. d4 {[%emt 0:00:
00]} c6 {[%emt 0:01:35]} 5. Bc4 {[%emt 0:04:10]} d6 {[%emt 0:10:39]} 6. Be3 {
[%emt 0:10:47]} Nf6 {[%emt 0:02:05]} 7. f3 {[%emt 0:02:15]} d5 {[%emt 0:03:28]}
8. Bb3 {[%emt 0:01:57]} dxe4 {[%emt 0:05:33]} 9. Nxe4 {[%emt 0:00:04]} Nbd7 {
[%emt 0:01:36]} 10. Qd3 {[%emt 0:06:38]} Nd5 {[%emt 0:05:40]} 11. Ng5 {[%emt 0:
00:00]} N7f6 {[%emt 0:02:03]} 12. O-O-O {[%emt 0:03:34]} a5 {[%emt 0:03:27]}
13. a4 {[%emt 0:15:02]} Bf5 {[%emt 0:04:33]} 14. Qe2 {[%emt 0:02:16]} O-O {
[%emt 0:01:35]} 15. N1h3 {[%emt 0:01:27]} b5 {[%emt 0:00:25]} 16. Nf4 {[%emt 0:
00:00]} bxa4 {[%emt 0:04:55]} 17. Bxd5 {[%emt 0:07:29]} cxd5 {[%emt 0:03:09]}
18. g4 {[%emt 0:00:15]} hxg4 {[%emt 0:00:11]} 19. h5 {[%emt 0:00:19]} Rc8 {
[%emt 0:04:52]} 20. Rd3 {[%emt 0:11:22]} gxf3 {[%emt 0:11:18]} 21. Qxf3 {
[%emt 0:02:37]} a3 {[%emt 0:07:50]} 22. bxa3 {[%emt 0:09:28]} Qc7 {[%emt 0:00:
00]} 23. Qe2 {[%emt 0:04:05]} e5 {[%emt 0:02:18]} 24. hxg6 {[%emt 0:06:46]}
exf4 {[%emt 0:01:25]} 25. gxf7+ {[%emt 0:03:26]} Rxf7 {[%emt 0:00:16]} 26. Nxf7
{[%emt 0:00:38]} Kxf7 {[%emt 0:01:30]} 27. Bf2 {[%emt 0:01:04]} Bg4 {[%emt 0:
00:00]} 28. Qd2 {[%emt 0:00:29]} Ne4 {[%emt 0:00:04]} 29. Rc3 {[%emt 0:00:29]}
Nxc3 {[%emt 0:00:45]} 0-1

[Event "44th Chess Olympiad Open 2022"]
[Site "Chennai"]
[Date "2022.08.02"]
[Round "5.49"]
[White "Rongwane, Gomolemo"]
[Black "Kigigha, Bomo"]
[Result "1/2-1/2"]
[WhiteElo "2033"]
[BlackElo "2251"]
[Annotator "NA RC"]
[PlyCount "63"]
[EventDate "2022.??.??"]
[TimeControl "60"]

1. d4 {[%emt 0:00:05]} d5 {[%emt 0:00:05]} 2. Nf3 {[%emt 0:01:27]} Nf6 {
[%emt 0:00:05]} 3. c4 {[%emt 0:00:51]} c6 {[%emt 0:00:09]} 4. Qc2 {[%emt 0:00:
00]} e6 {[%emt 0:00:08]} 5. g3 {[%emt 0:00:13]} Nbd7 {[%emt 0:01:02]} 6. Bg2 {
[%emt 0:00:11]} b6 {[%emt 0:00:49]} 7. O-O {[%emt 0:00:28]} Bb7 {[%emt 0:00:19]
} 8. Nbd2 {[%emt 0:00:27]} Bd6 {[%emt 0:01:39]} 9. e4 {[%emt 0:02:20]} dxe4 {
[%emt 0:04:51]} 10. Nxe4 {[%emt 0:00:22]} Nxe4 {[%emt 0:00:05]} 11. Qxe4 {
[%emt 0:00:05]} Nf6 {[%emt 0:04:00]} 12. Qe2 {[%emt 0:00:52]} O-O {[%emt 0:00:
00]} 13. Rd1 {[%emt 0:03:02]} h6 {[%emt 0:02:18]} 14. b3 {[%emt 0:08:06]} Qe7 {
[%emt 0:03:14]} 15. Bb2 {[%emt 0:00:54]} c5 {[%emt 0:04:11]} 16. d5 {[%emt 0:
00:00]} exd5 {[%emt 0:07:09]} 17. Qxe7 {[%emt 0:00:07]} Bxe7 {[%emt 0:00:04]}
18. Nh4 {[%emt 0:00:10]} g6 {[%emt 0:18:39]} 19. cxd5 {[%emt 0:06:19]} Ne8 {
[%emt 0:01:00]} 20. d6 {[%emt 0:07:05]} Nxd6 {[%emt 0:00:13]} 21. Bxb7 {
[%emt 0:01:45]} Nxb7 {[%emt 0:00:06]} 22. Rd7 {[%emt 0:00:18]} Bxh4 {[%emt 0:
00:00]} 23. Rxb7 {[%emt 0:00:10]} Bg5 {[%emt 0:07:05]} 24. f4 {[%emt 0:00:37]}
Bd8 {[%emt 0:00:05]} 25. Rd1 {[%emt 0:00:17]} b5 {[%emt 0:05:10]} 26. Rd6 {
[%emt 0:08:10]} Bb6 {[%emt 0:25:54]} 27. Rxg6+ {[%emt 0:03:04]} fxg6 {[%emt 0:
00:00]} 28. Rg7+ {[%emt 0:00:11]} Kh8 {[%emt 0:00:02]} 29. Rf7+ {[%emt 0:00:13]
} Kg8 {[%emt 0:00:05]} 30. Rg7+ {[%emt 0:00:14]} Kh8 {[%emt 0:00:24]} 31. Rf7+
{[%emt 0:00:09]} Kg8 {[%emt 0:01:29]} 32. Rg7+ {[%emt 0:14:12]} 1/2-1/2

[Event "44th Chess Olympiad Open 2022"]
[Site "Chennai"]
[Date "2022.08.02"]
[Round "5.49"]
[White "Sabure, Bojosi"]
[Black "Akinseye, Abiola"]
[Result "1/2-1/2"]
[WhiteElo "1966"]
[BlackElo "2214"]
[Annotator "NA RC"]
[PlyCount "102"]
[EventDate "2022.??.??"]
[TimeControl "60"]

1. Nf3 {[%emt 0:00:13]} d5 {[%emt 0:00:41]} 2. g3 {[%emt 0:00:14]} Nf6 {
[%emt 0:00:41]} 3. Bg2 {[%emt 0:01:31]} c6 {[%emt 0:01:16]} 4. O-O {[%emt 0:00:
00]} Bf5 {[%emt 0:01:32]} 5. d3 {[%emt 0:00:15]} h6 {[%emt 0:01:06]} 6. Nbd2 {
[%emt 0:00:51]} e6 {[%emt 0:01:04]} 7. Re1 {[%emt 0:01:07]} Bc5 {[%emt 0:01:05]
} 8. c4 {[%emt 0:03:58]} Qb6 {[%emt 0:03:09]} 9. e3 {[%emt 0:01:22]} Bxd3 {
[%emt 0:01:58]} 10. cxd5 {[%emt 0:00:16]} cxd5 {[%emt 0:02:47]} 11. Nb3 {
[%emt 0:00:33]} Bh7 {[%emt 0:02:48]} 12. Nxc5 {[%emt 0:04:39]} Qxc5 {[%emt 0:
00:00]} 13. Qb3 {[%emt 0:00:10]} Qe7 {[%emt 0:03:26]} 14. Qb5+ {[%emt 0:02:03]}
Qd7 {[%emt 0:00:59]} 15. Nd4 {[%emt 0:02:58]} O-O {[%emt 0:02:19]} 16. Bd2 {
[%emt 0:00:47]} Rc8 {[%emt 0:02:58]} 17. Rec1 {[%emt 0:00:43]} Nc6 {[%emt 0:00:
00]} 18. Nxc6 {[%emt 0:02:07]} Rxc6 {[%emt 0:00:17]} 19. Rxc6 {[%emt 0:00:55]}
Qxc6 {[%emt 0:01:56]} 20. Qxc6 {[%emt 0:03:44]} bxc6 {[%emt 0:00:09]} 21. Rc1 {
[%emt 0:00:05]} Rc8 {[%emt 0:01:06]} 22. Bb4 {[%emt 0:01:33]} Bd3 {[%emt 0:00:
00]} 23. Rc3 {[%emt 0:00:57]} Bb5 {[%emt 0:05:13]} 24. b3 {[%emt 0:00:26]} Nd7
{[%emt 0:02:35]} 25. a4 {[%emt 0:04:00]} Be2 {[%emt 0:02:33]} 26. Bd6 {[%emt 0:
00:00]} a5 {[%emt 0:11:00]} 27. f4 {[%emt 0:01:06]} c5 {[%emt 0:03:46]} 28. Kf2
{[%emt 0:00:53]} Ba6 {[%emt 0:00:31]} 29. e4 {[%emt 0:01:27]} d4 {[%emt 0:00:
00]} 30. Rc1 {[%emt 0:00:34]} Bb7 {[%emt 0:05:51]} 31. h4 {[%emt 0:07:17]} h5 {
[%emt 0:03:04]} 32. Bf3 {[%emt 0:02:15]} g6 {[%emt 0:00:30]} 33. e5 {[%emt 0:
00:00]} Bd5 {[%emt 0:04:37]} 34. Be2 {[%emt 0:03:47]} Bxb3 {[%emt 0:02:54]} 35.
Bb5 {[%emt 0:00:24]} Nb6 {[%emt 0:01:38]} 36. Rxc5 {[%emt 0:03:43]} Rxc5 {
[%emt 0:01:02]} 37. Bxc5 {[%emt 0:00:09]} Bxa4 {[%emt 0:02:22]} 38. Bxd4 {
[%emt 0:04:07]} Bxb5 {[%emt 0:01:03]} 39. Bxb6 {[%emt 0:00:07]} a4 {[%emt 0:00:
00]} 40. Bc5 {[%emt 0:00:11]} Kg7 {[%emt 0:03:17]} 41. Ke3 {[%emt 0:31:42]} f6
{[%emt 0:31:34]} 42. Kd4 {[%emt 0:00:07]} Kf7 {[%emt 0:01:11]} 43. Ba3 {
[%emt 0:00:19]} Be2 {[%emt 0:02:09]} 44. Bb4 {[%emt 0:00:38]} Bd1 {[%emt 0:00:
00]} 45. Ba3 {[%emt 0:00:09]} Bc2 {[%emt 0:00:51]} 46. Bb4 {[%emt 0:00:07]} Bf5
{[%emt 0:01:59]} 47. Ba3 {[%emt 0:00:10]} Bb1 {[%emt 0:00:35]} 48. Bb4 {
[%emt 0:00:08]} g5 {[%emt 0:02:27]} 49. Ba3 {[%emt 0:00:15]} Kg6 {[%emt 0:00:
00]} 50. Be7 {[%emt 0:01:09]} gxh4 {[%emt 0:04:40]} 51. gxh4 {[%emt 0:00:11]}
fxe5+ {[%emt 0:00:33]} 1/2-1/2

[Event "44th Chess Olympiad Open 2022"]
[Site "Chennai"]
[Date "2022.08.02"]
[Round "5.50"]
[White "Berend, Fred"]
[Black "Chinchilla, Alejandro Jose"]
[Result "0-1"]
[WhiteElo "2307"]
[BlackElo "2166"]
[Annotator "RC"]
[PlyCount "88"]
[EventDate "2022.??.??"]
[TimeControl "60"]

1. d4 {[%emt 0:00:04]} d5 {[%emt 0:00:12]} 2. Bf4 {[%emt 0:00:34]} Nf6 {
[%emt 0:00:22]} 3. e3 {[%emt 0:00:12]} c5 {[%emt 0:00:11]} 4. c3 {[%emt 0:00:
00]} Nc6 {[%emt 0:00:11]} 5. Nf3 {[%emt 0:01:11]} Qb6 {[%emt 0:00:18]} 6. Qb3 {
[%emt 0:01:17]} c4 {[%emt 0:00:26]} 7. Qc2 {[%emt 0:05:17]} Bf5 {[%emt 0:02:35]
} 8. Qc1 {[%emt 0:00:05]} e6 {[%emt 0:00:13]} 9. Nbd2 {[%emt 0:00:05]} Qa5 {
[%emt 0:00:22]} 10. Be2 {[%emt 0:03:00]} Nh5 {[%emt 0:05:57]} 11. Ne5 {[%emt 0:
00:00]} Nxf4 {[%emt 0:01:18]} 12. exf4 {[%emt 0:00:05]} Nxe5 {[%emt 0:05:33]}
13. fxe5 {[%emt 0:00:06]} Be7 {[%emt 0:00:39]} 14. O-O {[%emt 0:00:26]} h5 {
[%emt 0:22:00]} 15. b3 {[%emt 0:13:30]} Ba3 {[%emt 0:08:08]} 16. Qd1 {[%emt 0:
00:00]} Bb2 {[%emt 0:06:54]} 17. bxc4 {[%emt 0:00:28]} Qxc3 {[%emt 0:15:41]}
18. Qa4+ {[%emt 0:09:12]} Kf8 {[%emt 0:00:18]} 19. Rad1 {[%emt 0:00:39]} Bc2 {
[%emt 0:04:34]} 20. Qb5 {[%emt 0:11:03]} Bxd1 {[%emt 0:00:24]} 21. Rxd1 {
[%emt 0:00:13]} Qxd4 {[%emt 0:02:44]} 22. Qxb7 {[%emt 0:01:29]} Rd8 {[%emt 0:
00:00]} 23. c5 {[%emt 0:03:27]} Qxe5 {[%emt 0:02:46]} 24. Nc4 {[%emt 0:21:12]}
Qxe2 {[%emt 0:01:49]} 25. Nxb2 {[%emt 0:00:32]} g6 {[%emt 0:00:59]} 26. c6 {
[%emt 0:01:48]} Kg7 {[%emt 0:00:23]} 27. Qb4 {[%emt 0:01:55]} Rb8 {[%emt 0:00:
00]} 28. Qc3+ {[%emt 0:03:18]} d4 {[%emt 0:02:40]} 29. Qxd4+ {[%emt 0:01:03]}
e5 {[%emt 0:00:27]} 30. Qc4 {[%emt 0:01:06]} Rxb2 {[%emt 0:00:25]} 31. Qxe2 {
[%emt 0:00:27]} Rxe2 {[%emt 0:00:07]} 32. Rc1 {[%emt 0:00:01]} Rc8 {[%emt 0:00:
00]} 33. Kf1 {[%emt 0:00:10]} Rxa2 {[%emt 0:00:05]} 34. h4 {[%emt 0:00:15]} Rc7
{[%emt 0:00:05]} 35. g3 {[%emt 0:00:03]} Ra6 {[%emt 0:00:06]} 36. Re1 {[%emt 0:
00:00]} Kf6 {[%emt 0:00:13]} 37. Re3 {[%emt 0:00:11]} Raxc6 {[%emt 0:00:09]}
38. Rf3+ {[%emt 0:00:11]} Ke6 {[%emt 0:00:27]} 39. Ra3 {[%emt 0:00:07]} a6 {
[%emt 0:00:24]} 40. Kg2 {[%emt 0:00:05]} Ra7 {[%emt 0:00:13]} 41. Ra5 {[%emt 0:
00:00]} Kd6 {[%emt 0:30:12]} 42. Ra2 {[%emt 0:00:34]} a5 {[%emt 0:02:35]} 43.
Rd2+ {[%emt 0:00:05]} Ke6 {[%emt 0:00:18]} 44. Ra2 {[%emt 0:00:09]} a4 {
[%emt 0:00:14]} 0-1